Cogmind - Beta 9.4 @@@ ROGUE MODE // 2020.01.26 @ 16:20:20 Player: alice_fexa Result: Destroyed by as-77012 with Assembled Rifle Performance ------------- Evolutions (1) 500 Regions Visited (4) 800 Robots Destroyed (46) 230 Value Destroyed (1009) 1009 Prototype IDs (2) 40 Alien Tech Used (0) 0 Bonus (57) 57 TOTAL SCORE: 2636 Bonus ------- Follower Combat Kills 72 Friendly Fire -15 Cogmind --------- Core Integrity 0/400 Matter 230/300 Energy 100/100 System Corruption 0% Temperature Cool (0) Movement Treading (180) Ox1 Location -9/Mines Parts ------- > --- POWER (1) -------- (None) > --- PROPULSION (3) --- Light Treads > --- UTILITY (3) ------ Large Storage Unit Large Storage Unit > --- WEAPON (2) ------- Improved Light Cannon > --- INVENTORY (16) --- Light Ion Engine Light Treads Wheel Improved Heat Sink Improved Signal Interpreter Light Armor Plating Hacking Suite Shotgun Improved Light Cannon Grenade Launcher Makeshift Axe Peak State ------------ > --- POWER ------------ Improved Ion Engine > --- PROPULSION ------- Light Treads Compact Wheel Compact Wheel > --- UTILITY ---------- Improved Heat Sink Large Storage Unit Large Storage Unit > --- WEAPON ----------- Beam Rifle Improved Light Cannon > --- INVENTORY -------- Light Ion Engine Light Nuclear Core Light Treads Light Treads Wheel Improved Heat Sink Improved Signal Interpreter Light Armor Plating Hacking Suite Light EM Pulse Cannon Heavy Assault Rifle Improved Light Cannon Improved Light Cannon Grenade Launcher Grenade Launcher Makeshift Axe [Rating: 17] Favorites ----------- Power Light Ion Engine Engine Light Ion Engine Power Core Light Nuclear Core Propulsion Light Treads Treads Light Treads Wheel Compact Wheel Utility Large Storage Unit Device Improved Heat Sink Storage Large Storage Unit Weapon EM Pulse Gun Energy Gun EM Pulse Gun Energy Cannon Light EM Pulse Cannon Ballistic Gun Assault Rifle Ballistic Cannon Improved Light Cannon Launcher Grenade Launcher Build | -11 -10 -10 -9 -9 ------- Run | Scr Mat Min Mat Min Slots Evolved 2 | . . . 2 . Power . | . . . . . Propulsion 1 | . . . 1 . Utility 1 | . . . 1 . Weapon . | . . . . . Parts Attached 44 | 6 6 6 19 7 Power 11 | 1 1 2 5 2 Engine 9 | 1 1 2 4 1 Core 2 | . . . 1 1 Reactor . | . . . . . Propulsion 11 | 2 . 2 5 2 Treads 4 | 1 . . 2 1 Leg . | . . . . . Wheel 7 | 1 . 2 3 1 Hover . | . . . . . Flight . | . . . . . Utility 8 | 1 3 . 4 . Device 3 | . . . 3 . Storage 5 | 1 3 . 1 . Processor . | . . . . . Hackware . | . . . . . Protection . | . . . . . Artifact . | . . . . . Weapon 14 | 2 2 2 5 3 Energy Gun 5 | 1 1 . 3 . Energy Cannon 1 | . . . . 1 Ballistic Gun 3 | 1 . 1 1 . Ballistic Cannon 2 | . . . 1 1 Launcher 3 | . 1 1 . 1 Special Weapon . | . . . . . Impact Weapon . | . . . . . Slashing Weapon . | . . . . . Piercing Weapon . | . . . . . Special Melee Weapon . | . . . . . Unidentified Prototypes . | . . . . . Parts Lost 16 | . . . 4 12 Power 4 | . . . 1 3 Propulsion 6 | . . . 2 4 Utility 1 | . . . . 1 Weapon 5 | . . . 1 4 Highest Loss Streak 8 | . . . 2 8 Average Slot Usage (%) 96 | . 92 100 98 80 Engine 10 | . 14 14 9 . Core 1 | . . . 1 6 Treads 12 | . 14 14 10 11 Wheel 16 | . 14 14 21 11 Device 5 | . . . 11 9 Storage 23 | . 21 28 22 22 Energy Gun 10 | . 14 14 8 . Ballistic Gun 7 | . 14 6 6 5 Ballistic Cannon 3 | . . . 7 10 Launcher 2 | . . 7 . . Naked Turns . | . . . . . Heaviest Build 48 | 11 41 42 48 46 Greatest Support 32 | 16 16 16 32 32 Greatest Overweight (x) 4 | . 2 4 4 2 Average Overweight (x) 1 | . . 2 1 1 Largest Inventory Capacity 16 | 6 16 16 16 16 Average Capacity 14 | 5 8 16 16 16 Most Carried 16 | 4 11 16 16 16 Average Carried 12 | 2 6 14 15 13 Final Capacity 16 | 6 16 16 16 16 Final Carried 16 | 4 11 16 16 11 Class Distribution -------------------- 87% | Mutant 12% | Scavenger-Mutant Dominant Class ---------------- Mutant | -10/Materials Mutant | -10/Mines Mutant | -9/Materials Mutant | -9/Mines Resources | -11 -10 -10 -9 -9 ----------- Run | Scr Mat Min Mat Min Matter Collected 978 | 260 33 204 361 120 Remotely . | . . . . . Salvage Created 1225 | . 141 232 677 175 Parts 82 | . 11 16 45 10 Haulers Intercepted . | . . . . . Recyclers Shooed 1 | . . . . 1 Parts Field Recycled . | . . . . . Retrieved Matter . | . . . . . Parts Self-Destructed . | . . . . . Prevented . | . . . . . Kills | -11 -10 -10 -9 -9 ------- Run | Scr Mat Min Mat Min Combat Hostiles Destroyed 38 | . 6 9 17 6 Guns 16 | . 2 3 11 . Cannons 9 | . . . 6 3 AOE 13 | . 4 6 . 3 Classes Destroyed 10 | . 2 2 3 3 Worker 2 | . . 1 1 . Builder 1 | . . . . 1 Tunneler 1 | . . 1 . . Recycler 3 | . . . 1 2 Operator 1 | . . . 1 . Swarmer 14 | . 3 7 4 . Grunt 14 | . 3 2 9 . Sentry 4 | . . . 4 . Demolisher 2 | . . . . 2 Assembled 4 | . . . . 4 Best Kill Streak 9 | . 3 3 6 9 Combat Bots Only 5 | . 3 3 5 4 Max Kills in Single Turn 4 | . 3 3 1 4 Gunslinging . | . . . . . Exploded 3 | . 3 3 . 2 Melee . | . . . . . Uniques/NPCs Destroyed . | . . . . . Combat | -11 -10 -10 -9 -9 -------- Run | Scr Mat Min Mat Min Damage Taken 2518 | . 110 288 713 1407 Core 494 | . 18 71 120 285 Absorbed by Shields . | . . . . . Core Remaining (%) 82 | 100 . 64 . . Volleys Fired 110 | . 9 16 54 31 Largest 2 | . 2 2 2 2 Hottest 95 | . 60 70 95 95 Shots Fired 194 | . 16 32 107 39 Gun 127 | . 14 28 79 6 Cannon 56 | . . . 28 28 Launcher 11 | . 2 4 . 5 Special . | . . . . . Kinetic 109 | . 7 12 61 29 Thermal 34 | . . . 34 . Explosive 11 | . 2 4 . 5 Electromagnetic 40 | . 7 16 12 5 Robot Hit Streak 26 | . 6 8 26 7 Robot Miss Streak 4 | . 1 4 3 3 Penetration Max . | . . . . . Secondary Targets 3 | . . 1 2 . Max Gunslinging Chain 1 | . . 1 1 . Shots Hit Robots 123 | . 12 16 71 24 Core Hits 66 | . 9 12 30 15 Critical Hits 1 | . . . 1 . Critical Kills . | . . . . . Critical Parts Destroyed 1 | . . . 1 . Melee Attacks . | . . . . . Impact . | . . . . . Slashing . | . . . . . Piercing . | . . . . . Sneak Attacks . | . . . . . Combat Hostiles . | . . . . . Follow-up Attacks . | . . . . . Damage Inflicted 2568 | . 298 423 1100 747 Guns 1061 | . 139 197 663 62 Cannons 825 | . . . 437 388 Explosions 682 | . 159 226 . 297 Melee . | . . . . . Ramming . | . . . . . Kinetic 1187 | . 64 97 651 375 Thermal 357 | . 21 . 336 . Explosive 661 | . 138 226 . 297 Electromagnetic 363 | . 75 100 113 75 Impact . | . . . . . Slashing . | . . . . . Piercing . | . . . . . Highest Corruption . | . . . . . Average Corruption . | . . . . . Corruption Purged . | . . . . . Overload Shots . | . . . . . Overflow Damage 13 | . . . . 13 Projectiles . | . . . . . Explosions 13 | . . . . 13 Melee . | . . . . . Knockbacks 7 | . . . 4 3 Impact . | . . . . . Kinetic 7 | . . . 4 3 Secondary . | . . . . . Self-Inflicted Damage 122 | . 4 44 . 74 Shots 5 | . 1 2 . 2 Rammed . | . . . . . Targets Rammed . | . . . . . Kicked . | . . . . . Crushed . | . . . . . Highest Temperature 42 | . 30 42 21 . Average Temperature 17 | . 16 22 5 . Received Heat Transfer 336 | . 30 42 264 . Siege Activations . | . . . . . Robots Corrupted . | . . . . . Combat Hostiles . | . . . . . Parts Fried . | . . . . . Impact Corruptions . | . . . . . Robots Melted . | . . . . . Combat Hostiles . | . . . . . Parts Melted 3 | . . . 3 . Heat Transferred 916 | . 50 . 866 . Parts Sabotaged . | . . . . . Parts Stolen . | . . . . . Parts Stripped . | . . . . . Power Chain Reactions 1 | . 1 . . . Missiles Intercepted . | . . . . . Alert | -11 -10 -10 -9 -9 ------- Run | Scr Mat Min Mat Min Peak Influence 398 | . 140 294 398 154 Average Influence 179 | . 44 172 266 134 Maximum Alert Level 1 | . . 1 1 . Low Security (%) 54 | 100 100 46 27 100 Level 1 45 | . . 53 72 . Level 2 . | . . . . . Level 3 . | . . . . . Level 4 . | . . . . . Level 5 . | . . . . . High Security . | . . . . . Max Security . | . . . . . Squads Dispatched 5 | . 1 . 4 . Investigation 1 | . 1 . . . Extermination . | . . . . . Reinforcement 4 | . . . 4 . Assault . | . . . . . Garrison . | . . . . . Intercept . | . . . . . Construction Impeded . | . . . . . Haulers Reinforced . | . . . . . Stealth | -11 -10 -10 -9 -9 --------- Run | Scr Mat Min Mat Min Distress Signals 1 | . 1 . . . Communications Jammed . | . . . . . Distress Signals . | . . . . . Times Spotted 51 | . 7 11 25 8 Peak Tracking Total 4 | . 4 3 4 4 Tactical Retreats 2 | . . . 2 . Traps | -11 -10 -10 -9 -9 ------- Run | Scr Mat Min Mat Min Traps Triggered . | . . . . . Indirectly . | . . . . . Trap Hack Attempts . | . . . . . Triggered . | . . . . . Disarmed . | . . . . . Reprogrammed . | . . . . . Reused . | . . . . . Traps Extracted . | . . . . . Installed . | . . . . . Triggered . | . . . . . Machines | -11 -10 -10 -9 -9 ---------- Run | Scr Mat Min Mat Min Machines Disabled 2 | . . 2 . . Max in Single Turn 2 | . . 2 . . Machines Sabotaged . | . . . . . Garrisons Compromised . | . . . . . Overloaded Fab Kills . | . . . . . Fab Network Shutdowns . | . . . . . Hacking | -11 -10 -10 -9 -9 --------- Run | Scr Mat Min Mat Min Machines Accessed 5 | . 2 . 3 . Terminals 4 | . 2 . 2 . Fabricators . | . . . . . Repair Stations 1 | . . . 1 . Recycling Units . | . . . . . Scanalyzers . | . . . . . Garrison Access . | . . . . . Total Hacks 11 | . 4 . 7 . Successful 7 | . 2 . 5 . Failed 4 | . 2 . 2 . Catastrophic 1 | . . . 1 . Database Lockouts . | . . . . . Manual 8 | . 4 . 4 . Terminals 9 | . 4 . 5 . Fabricators . | . . . . . Repair Stations 2 | . . . 2 . Recycling Units . | . . . . . Scanalyzers . | . . . . . Garrison Access . | . . . . . Terminal Hacks 2 | . . . 2 . Prototype ID Bank 1 | . . . 1 . Recall Reinforcements 1 | . . . 1 . Fabricator Hacks . | . . . . . Repair Station Hacks 2 | . . . 2 . Scan Component 1 | . . . 1 . Repair 1 | . . . 1 . Recycling Unit Hacks . | . . . . . Scanalyzer . | . . . . . Garrison Access Hacks . | . . . . . Unauthorized Hacks 9 | . 6 . 3 . Terminals 3 | . 2 . 1 . Track 1 | . 1 . . . Botnet 2 | . 1 . 1 . Fabricators . | . . . . . Repair Stations . | . . . . . Recycling Units . | . . . . . Scanalyzers . | . . . . . Garrison Access . | . . . . . Data Cores Recovered . | . . . . . Used . | . . . . . Hacking Detections 5 | . 2 . 3 . Full Trace Events 1 | . 1 . . . Feedback Events . | . . . . . Feedback Blocked . | . . . . . Robot Schematics Acquired . | . . . . . Robots Built . | . . . . . Matter . | . . . . . Time . | . . . . . Total Robot Build Rating . | . . . . . Part Schematics Acquired . | . . . . . Parts Built . | . . . . . Matter . | . . . . . Time . | . . . . . Total Part Build Rating . | . . . . . Parts Repaired 1 | . . . 1 . Time 26 | . . . 26 . Parts Recycled . | . . . . . Recycled Matter . | . . . . . Retrieved Matter . | . . . . . Retrieved Components . | . . . . . Parts Scanalyzed . | . . . . . Part Schematics Acquired . | . . . . . Parts Damaged . | . . . . . Bothacking | -11 -10 -10 -9 -9 ------------ Run | Scr Mat Min Mat Min Used RIF Installer . | . . . . . Robots Hacked . | . . . . . Non-combat . | . . . . . Combat . | . . . . . Robot Hacks Applied . | . . . . . Relay Couplers Released . | . . . . . Robots Rewired . | . . . . . Allies Hacked . | . . . . . Hacks Repelled . | . . . . . Allies | -11 -10 -10 -9 -9 -------- Run | Scr Mat Min Mat Min Total Allies 3 | . . 3 . . Largest Group 3 | . . 3 3 . Highest-Rated Group 40 | . . 40 40 . Highest-Rated Ally 16 | . . 16 16 . Total Orders . | . . . . . Ally Attacks 14 | . . 7 7 . Total Damage 150 | . . 57 93 . Kills 4 | . . 2 2 . Allies Corrupted . | . . . . . Allies Melted . | . . . . . Intel | -11 -10 -10 -9 -9 ------- Run | Scr Mat Min Mat Min Robot Analysis Total . | . . . . . Derelict Logs Recovered 2 | . . 1 . 1 Drone Launches . | . . . . . Drone Recoveries . | . . . . . Exploration | -11 -10 -10 -9 -9 ------------- Run | Scr Mat Min Mat Min Turns Passed 1649 | 45 282 515 657 150 Spaces Moved 1045 | 33 212 386 351 63 Core 1 | 1 . . . . Treads 1 | . . . . 1 Legs . | . . . . . Wheels 1043 | 32 212 386 351 62 Hover . | . . . . . Flight . | . . . . . Fastest Speed 50 | 50 100 110 100 110 Average Speed 110 | 98 105 116 106 112 Slowest Speed 180 | 100 120 120 120 180 Overloaded Moves . | . . . . . Propulsion Burnouts . | . . . . . Robots Hopped . | . . . . . Cave-ins Triggered . | . . . . . Exploration Rate (%) 36 | 3 40 85 35 20 Regions Visited 4 Branch Regions 2 Pre-discovered Areas 2 | . . 1 . 1 Known Exits Taken . | . . . . . Unknown Exits Taken 4 | 1 1 1 1 . Scrap Searched 4 | . . 3 . 1 Spaces Dug . | . . . . . Terrain Destroyed 57 | . 12 25 . 20 Melee . | . . . . . Projectile 2 | . . . . 2 AOE 55 | . 12 25 . 18 Actions | -11 -10 -10 -9 -9 --------- Run | Scr Mat Min Mat Min Total 1350 | 42 253 419 533 103 Wait 105 | . 21 5 77 2 Move 1041 | 32 211 385 350 63 Hop . | . . . . . Pick Up 28 | 4 5 4 15 . Fast Attach 14 | 6 1 . 5 2 Attach 11 | . . . 6 5 Detach 1 | . . . 1 . Swap 19 | . 5 6 8 . Drop 21 | . 1 3 17 . Fire 110 | . 9 16 54 31 Melee . | . . . . . Ram . | . . . . . Kick . | . . . . . Crush . | . . . . . Escape Stasis . | . . . . . Rewire . | . . . . . Trap . | . . . . . Miscellaneous . | . . . . . Route ------- -11/Scrapyard -10/Materials (discovered 2 exits: *Mat / [*Min]) -10/Mines -9/Materials -9/Mines (discovered 1 exit: [*Mat]) History --------- Turn | Location | Event 24 | -11/Scrapyard | Discovered new exit (range 15) 46 | -11/Scrapyard | Entered Materials 200 | -10/Materials | Discovered new exit (range 4) 304 | -10/Materials | Discovered new exit (range 13) 307 | -10/Materials | Build established: Mutant 328 | -10/Materials | Entered Mines 344 | -10/Mines | A weapon hastily lodged in a ceiling crevice suddenly fell to the ground 355 | -10/Mines | Met a Derelict bent on vengeance 599 | -10/Mines | Learned location of Zion (-6) 755 | -10/Mines | Assisted by bots powering up and referring to "LRC-V3" 792 | -10/Mines | Discovered new exit (range 13) 843 | -10/Mines | Entered Materials 843 | -9/Materials | Accompanied by 3 allies 843 | -9/Materials | Evolved 2 slots: Propulsion x1, Utility x1 1430 | -9/Materials | Discovered new exit (range 16) 1486 | -9/Materials | Repaired Lgt. Treads 1500 | -9/Materials | Entered Mines 1522 | -9/Mines | Discovered new exit (range 14) 1551 | -9/Mines | Assembled infested the area 1556 | -9/Mines | Assisted by a Guerilla fighting off Assembled 1579 | -9/Mines | Core integrity fell below 50% 1587 | -9/Mines | Core integrity fell below 20% 1621 | -9/Mines | Lost 8 parts (2p3n3w) 1650 | -9/Mines | Destroyed by as-77012 with Assembled Rifle Last Messages --------------- 01633_ as-14004 destroyed. 01633_ R-06 Scavenger destroyed. 01633_ U-05 Engineer destroyed. 01634_ K-01 Serf collects debris. 01635_ Destroyed Asb. Maul. 01635_ Destroyed Asb. Hover Unit. 01635_ Cooling System destroyed. 01637_ The unstable cave ceiling collapses. 01637_ K-01 Serf collects debris. 01639_ Acquired 57 matter. 01640_ as-29817 destroyed. 01641_ K-01 Serf collects debris. 01645_ Grenade Launcher destroyed. 01647_ The unstable cave ceiling collapses. 01647_ K-01 Serf collects debris. 01648_ K-01 Serf destroyed. 01648_ Com. Wheel destroyed. 01649_ K-01 Serf collects debris. 01649_ as-23572 destroyed. 01649_ K-01 Serf collects debris. Map ----- +----------------------------------------------------+ | ?????????????????????????????????????????????????? | | ?????????????????????????#######?????????????????? | | ?????????????????????????# #????????????????? | | ?????????????????????????# #????????????????? | | ?????????????????????????# """ #????????????????? | | ?????????????????????????# """ #????????????????? | | ?????????????????????????# """ #????????????????? | | ?????????????????????##### #????????????????? | | ?????????????????????# #????????????????? | | ?????????????????????# #????????????????? | | ?????????????????????# ## #????????????????? | | ?????????????????????# ## #????????????????? | | ?????????????????????# ## #????????????????? | | ?????????????????????# #########????????????????? | | ?????????????????????# ######???????????????????? | | ???????????????????#?# #?#?????????????????? | | ??????????????????? ?# #### # ###???????????????? | | ??????????????????? ?#=%### # ##??????????????? | | ??????????????????# ## ## ##?????????????? | | ??????????????????# ## ## #t #?????????????? | | ?????############## ## # #?????????????? | | ?????# ## ## ! ##?????????????? | | ?????# ## ## # =%= ####???????????? | | ???### ## ## ! a% #???????????? | | ???# ## ## %k #??????????? | | ???# ## ## @!! # ???????? | | ???+ k!#k #?????? | | ???+ % # a ?????? | | ???# ##;#### ### * ??????? | | ???# < ## ??? # ?? ## %! ??????? | | ???### ##???######??? ##??## ??????? | | ?????#############????????????? #????????????? | | ???????????????????????????????? #????????????? | | ????????????????????????????????# ##????????????? | | ????????????????????????????????? #?????????????? | | ????????????????????????????????? #?????????????? | | ?????????????????????????????????? ?????????????? | | ?????????????????????????????????????????????????? | | ?????????????????????????????????????????????????? | | ?????????????????????????????????????????????????? | | ?????????????????????????????????????????????????? | | ?????????????????????????????????????????????????? | | ?????????????????????????????????????????????????? | | ?????????????????????????????????????????????????? | | ?????????????????????????????????????????????????? | | ?????????????????????????????????????????????????? | | ?????????????????????????????????????????????????? | | ?????????????????????????????????????????????????? | | ?????????????????????????????????????????????????? | | ?????????????????????????????????????????????????? | +----------------------------------------------------+ Best States ------------- Heat Dissipation 50 Energy Generation 14 Energy Capacity 265 Matter Stores 300 Matter Capacity 300 Sight Range 16 Terrain Scan Density 10 Evasion (%) 40 Recoil Reduction 1 Item Schematics ----------------- None Robot Schematics ------------------ None Fabricated ------------ Nothing Alien Tech Used ----------------- None Achievements -------------- None Challenges ------------ None Game ------ Seed FusionBladeTreads Manual? 0 Play Time 00:12:04 Cumulative 656.9 hours Start 2020.01.26 @ 16:10:03 End 2020.01.26 @ 16:20:20 Sessions 1 Manual Loads 0 Difficulty Rogue Special Mode None Game No. 606 Rogue 566 Adventurer 40 Explorer 0 Win Type - Total 52 Types 38/0/12/2/0/0/0 Lore% 88 Gallery% 90 Achievement% 69 Wizard Run 0 Options --------- ASCII 0 Keyboard 0 Movement Numpad Keybinds 0 Fullscreen 0 Font 16/Terminus Map View 76x50 Tactical HUD 1 Map Filters NONE Filters NONE Steam 1 RUN: d7b554b9-ba55-49b1-9f4d-d2e7e176158f